[Event "*** Titled Tuesday Blitz"]
[Site "Chess.com"]
[Date "2020.03.03"]
[Round "9"]
[White "Mbneu"]
[Black "JustDazzled"]
[Result "0-1"]
[WhiteElo "2196"]
[BlackElo "2018"]
[TimeControl "180+1"]
[EndTime "14:48:24 PST"]
[Termination "JustDazzled won on time"]

1. d4 {[%clk 0:03:00.9]} 1... g6 {[%clk 0:02:59.2]} 2. c4 {[%clk 0:02:52.7]}
2... Bg7 {[%clk 0:02:58.2]} 3. f4 {[%clk 0:02:53.3]} 3... d5 {[%clk 0:02:45.8]}
4. cxd5 {[%clk 0:02:52.3]} 4... Nf6 {[%clk 0:02:45.1]} 5. Nf3 {[%clk 0:02:50.8]}
5... Bg4 {[%clk 0:02:40.3]} 6. e3 {[%clk 0:02:45.6]} 6... O-O {[%clk 0:02:38]}
7. Nc3 {[%clk 0:02:39.2]} 7... Nxd5 {[%clk 0:02:37.5]} 8. Be2 {[%clk 0:02:39.1]}
8... c5 {[%clk 0:02:20]} 9. O-O {[%clk 0:02:28.6]} 9... Nc6 {[%clk 0:02:19.3]}
10. Nxd5 {[%clk 0:02:18.2]} 10... Qxd5 {[%clk 0:02:18.7]} 11. dxc5 {[%clk
0:02:07.1]} 11... Qxc5 {[%clk 0:02:15.5]} 12. Kh1 {[%clk 0:01:49.8]} 12... Qb6
{[%clk 0:01:46]} 13. e4 {[%clk 0:01:35.4]} 13... Rfd8 {[%clk 0:01:44.1]} 14. Qb3
{[%clk 0:01:34]} 14... Bxf3 {[%clk 0:00:52]} 15. Bxf3 {[%clk 0:01:28.3]} 15...
Nd4 {[%clk 0:00:51.9]} 16. Qxb6 {[%clk 0:01:27.3]} 16... axb6 {[%clk 0:00:52.8]}
17. Bd1 {[%clk 0:01:18.5]} 17... Rac8 {[%clk 0:00:26.9]} 18. e5 {[%clk 0:00:57]}
18... Ne6 {[%clk 0:00:17.3]} 19. Be3 {[%clk 0:00:45.2]} 19... b5 {[%clk
0:00:16.6]} 20. Bg4 {[%clk 0:00:39.4]} 20... h5 {[%clk 0:00:13.7]} 21. Bxe6
{[%clk 0:00:37]} 21... fxe6 {[%clk 0:00:14.6]} 22. h4 {[%clk 0:00:35.8]} 22...
Rd3 {[%clk 0:00:13.3]} 23. Rae1 {[%clk 0:00:27.6]} 23... Rc2 {[%clk 0:00:12.9]}
24. Bc1 {[%clk 0:00:19.3]} 24... Bh6 {[%clk 0:00:13.1]} 25. Rd1 {[%clk 0:00:14]}
25... Rxd1 {[%clk 0:00:11.2]} 26. Rxd1 {[%clk 0:00:13.8]} 26... Rf2 {[%clk
0:00:06.6]} 27. g3 {[%clk 0:00:13.7]} 27... Re2 {[%clk 0:00:05.7]} 28. Kg1
{[%clk 0:00:12.8]} 28... Kf7 {[%clk 0:00:05.9]} 29. Kf1 {[%clk 0:00:12.9]} 29...
Rh2 {[%clk 0:00:06]} 30. Be3 {[%clk 0:00:11.7]} 30... Rxb2 {[%clk 0:00:05.6]}
31. Rd7 {[%clk 0:00:09.4]} 31... Rxa2 {[%clk 0:00:05.1]} 32. Rxb7 {[%clk
0:00:09.5]} 32... Ra3 {[%clk 0:00:03.7]} 33. Bf2 {[%clk 0:00:09.4]} 33... Bf8
{[%clk 0:00:03.5]} 34. Rxb5 {[%clk 0:00:07.6]} 34... Ra1+ {[%clk 0:00:04.4]} 35.
Kg2 {[%clk 0:00:07.3]} 35... Ra2 {[%clk 0:00:04.7]} 36. Rb7 {[%clk 0:00:07.5]}
36... Rc2 {[%clk 0:00:05.1]} 37. Rd7 {[%clk 0:00:07.6]} 37... Ra2 {[%clk
0:00:04.9]} 38. Rb7 {[%clk 0:00:07.8]} 38... Rc2 {[%clk 0:00:04.9]} 39. Rb8
{[%clk 0:00:08.1]} 39... Ra2 {[%clk 0:00:04.4]} 40. Rd8 {[%clk 0:00:08.4]} 40...
Rc2 {[%clk 0:00:04.9]} 41. Rd3 {[%clk 0:00:09]} 41... Ra2 {[%clk 0:00:05.1]} 42.
Kf3 {[%clk 0:00:09.4]} 42... Rc2 {[%clk 0:00:05.3]} 43. Be3 {[%clk 0:00:10]}
43... Rh2 {[%clk 0:00:05]} 44. Rd2 {[%clk 0:00:10.3]} 44... Rxd2 {[%clk
0:00:05]} 45. Bxd2 {[%clk 0:00:10.2]} 45... Bg7 {[%clk 0:00:05.6]} 46. Ke4
{[%clk 0:00:10.5]} 46... Bh6 {[%clk 0:00:05.8]} 47. Bb4 {[%clk 0:00:10.6]} 47...
Bf8 {[%clk 0:00:06.3]} 48. Kd4 {[%clk 0:00:10.8]} 48... Ke8 {[%clk 0:00:06.1]}
49. Kc4 {[%clk 0:00:11.5]} 49... Kd7 {[%clk 0:00:06.6]} 50. Kb5 {[%clk
0:00:12.2]} 50... Bg7 {[%clk 0:00:06.8]} 51. Kb6 {[%clk 0:00:12]} 51... Bf8
{[%clk 0:00:07.3]} 52. Kb7 {[%clk 0:00:12.5]} 52... Bg7 {[%clk 0:00:07.9]} 53.
Bc5 {[%clk 0:00:13]} 53... Bf8 {[%clk 0:00:08.4]} 54. Bb6 {[%clk 0:00:12.9]}
54... Bg7 {[%clk 0:00:08.8]} 55. Bc7 {[%clk 0:00:13.2]} 55... Bf8 {[%clk
0:00:09.4]} 56. Bb6 {[%clk 0:00:13]} 56... Bg7 {[%clk 0:00:09.9]} 57. Be3 {[%clk
0:00:13.7]} 57... Bf8 {[%clk 0:00:10.3]} 58. Bf2 {[%clk 0:00:14.5]} 58... Bg7
{[%clk 0:00:10.8]} 59. Be3 {[%clk 0:00:15]} 59... Bh6 {[%clk 0:00:11.4]} 60. Kb6
{[%clk 0:00:15.1]} 60... Bg7 {[%clk 0:00:11.8]} 61. Kc5 {[%clk 0:00:15.7]} 61...
Bf8 {[%clk 0:00:12.2]} 62. Kd4 {[%clk 0:00:16.4]} 62... Bg7 {[%clk 0:00:12.8]}
63. Ke4 {[%clk 0:00:17.2]} 63... Ke8 {[%clk 0:00:12.3]} 64. Kf3 {[%clk
0:00:17.6]} 64... Kf7 {[%clk 0:00:12.7]} 65. g4 {[%clk 0:00:18.1]} 65... Bf8
{[%clk 0:00:07.6]} 66. Kg3 {[%clk 0:00:15.7]} 66... Bg7 {[%clk 0:00:06.3]} 67.
Bd4 {[%clk 0:00:15.1]} 67... Bf8 {[%clk 0:00:06.7]} 68. Kf3 {[%clk 0:00:14.8]}
68... Bg7 {[%clk 0:00:07.2]} 69. Bc5 {[%clk 0:00:15]} 69... Bf8 {[%clk
0:00:06.9]} 70. Kg3 {[%clk 0:00:14.4]} 70... Bg7 {[%clk 0:00:07]} 71. Bd4 {[%clk
0:00:12.7]} 71... Bf8 {[%clk 0:00:06.8]} 72. f5 {[%clk 0:00:06.9]} 72... exf5
{[%clk 0:00:05.7]} 73. gxf5 {[%clk 0:00:04.1]} 73... gxf5 {[%clk 0:00:05.9]} 74.
Kf4 {[%clk 0:00:04.6]} 74... Kg6 {[%clk 0:00:04]} 75. e6 {[%clk 0:00:02.3]}
75... Bh6+ {[%clk 0:00:03.2]} 76. Kf3 {[%clk 0:00:02.5]} 76... Bg7 {[%clk
0:00:03.8]} 77. Bc5 {[%clk 0:00:01.3]} 77... Kf6 {[%clk 0:00:02.9]} 78. Bd4+
{[%clk 0:00:01.4]} 78... Kxe6 {[%clk 0:00:03.1]} 79. Bxg7 {[%clk 0:00:01.1]}
79... Kf7 {[%clk 0:00:02.4]} 80. Be5 {[%clk 0:00:01.1]} 80... Ke6 {[%clk
0:00:02.6]} 81. Kf4 {[%clk 0:00:02]} 81... Kf7 {[%clk 0:00:01.5]} 82. Bc7 {[%clk
0:00:01.8]} 82... e6 {[%clk 0:00:02.4]} 83. Ke5 {[%clk 0:00:01.8]} 83... Kg6
{[%clk 0:00:02.1]} 84. Bd8 {[%clk 0:00:01.8]} 84... f4 {[%clk 0:00:02]} 0-1

[Event "*** Titled Tuesday Blitz"]
[Site "Chess.com"]
[Date "2020.03.03"]
[Round "9"]
[White "LogoCzar"]
[Black "Kobalia"]
[Result "1-0"]
[WhiteElo "2523"]
[BlackElo "2611"]
[TimeControl "180+1"]
[EndTime "14:48:38 PST"]
[Termination "LogoCzar won on time"]

1. e4 {[%clk 0:03:00.9]} 1... c5 {[%clk 0:02:57.4]} 2. Nf3 {[%clk 0:03:01.1]}
2... e6 {[%clk 0:02:57.6]} 3. d4 {[%clk 0:03:01.4]} 3... cxd4 {[%clk 0:02:57.1]}
4. Nxd4 {[%clk 0:03:02.3]} 4... Nc6 {[%clk 0:02:56.5]} 5. Nc3 {[%clk 0:03:02.2]}
5... a6 {[%clk 0:02:56.4]} 6. Be3 {[%clk 0:02:55.9]} 6... Nf6 {[%clk 0:02:55.1]}
7. Nxc6 {[%clk 0:02:42.2]} 7... bxc6 {[%clk 0:02:53.8]} 8. e5 {[%clk 0:02:38.6]}
8... Nd5 {[%clk 0:02:53.1]} 9. Bd2 {[%clk 0:02:39]} 9... Qc7 {[%clk 0:02:48.9]}
10. f4 {[%clk 0:02:35.5]} 10... Rb8 {[%clk 0:02:45.3]} 11. Bd3 {[%clk
0:02:21.5]} 11... Rxb2 {[%clk 0:02:39.6]} 12. O-O {[%clk 0:02:21.1]} 12... Qa7+
{[%clk 0:02:34]} 13. Kh1 {[%clk 0:02:20.2]} 13... Ne3 {[%clk 0:02:34.1]} 14.
Bxe3 {[%clk 0:02:19.3]} 14... Qxe3 {[%clk 0:02:33.8]} 15. Ne4 {[%clk 0:02:12.7]}
15... Be7 {[%clk 0:02:28.2]} 16. f5 {[%clk 0:02:06.5]} 16... exf5 {[%clk
0:02:24.2]} 17. Rxf5 {[%clk 0:02:04.2]} 17... d5 {[%clk 0:02:18.3]} 18. Rf3
{[%clk 0:01:27.9]} 18... Qh6 {[%clk 0:02:17.4]} 19. Ng3 {[%clk 0:01:11.8]} 19...
g6 {[%clk 0:02:08.8]} 20. Qe1 {[%clk 0:00:48.6]} 20... Qh4 {[%clk 0:01:54.4]}
21. Qc3 {[%clk 0:00:44.5]} 21... Rb6 {[%clk 0:01:53.7]} 22. e6 {[%clk
0:00:39.2]} 22... f6 {[%clk 0:01:43.9]} 23. Raf1 {[%clk 0:00:22.8]} 23... O-O
{[%clk 0:01:37.5]} 24. Qe1 {[%clk 0:00:21.4]} 24... Qd4 {[%clk 0:01:15.2]} 25.
Rf4 {[%clk 0:00:20.5]} 25... Qe5 {[%clk 0:01:11.8]} 26. Qf2 {[%clk 0:00:20.4]}
26... Rb8 {[%clk 0:01:05.1]} 27. Re1 {[%clk 0:00:20.3]} 27... Qd6 {[%clk
0:01:03.9]} 28. Nf5 {[%clk 0:00:19.7]} 28... Qc5 {[%clk 0:00:40.2]} 29. Qg3
{[%clk 0:00:12.4]} 29... Rb4 {[%clk 0:00:28.1]} 30. Rg4 {[%clk 0:00:08.9]} 30...
Rxg4 {[%clk 0:00:26]} 31. Qxg4 {[%clk 0:00:09.1]} 31... Kh8 {[%clk 0:00:22.3]}
32. Nh4 {[%clk 0:00:09.3]} 32... f5 {[%clk 0:00:20.2]} 33. Qh3 {[%clk
0:00:06.7]} 33... Bxh4 {[%clk 0:00:13.7]} 34. Qxh4 {[%clk 0:00:06.9]} 34... Kg7
{[%clk 0:00:12]} 35. e7 {[%clk 0:00:04.5]} 35... Re8 {[%clk 0:00:11.4]} 36. Qg5
{[%clk 0:00:03.5]} 36... Qd6 {[%clk 0:00:09.3]} 37. h4 {[%clk 0:00:03]} 37...
Qf6 {[%clk 0:00:09.2]} 38. Qf4 {[%clk 0:00:02.1]} 38... Rxe7 {[%clk 0:00:07.9]}
39. Rb1 {[%clk 0:00:01.3]} 39... Qe5 {[%clk 0:00:05.3]} 40. Qf2 {[%clk
0:00:01.3]} 40... Qe3 {[%clk 0:00:03.1]} 41. Rf1 {[%clk 0:00:01.4]} 41... Qxf2
{[%clk 0:00:02.5]} 42. Rxf2 {[%clk 0:00:02.3]} 42... c5 {[%clk 0:00:02.8]} 43.
g3 {[%clk 0:00:02.7]} 43... c4 {[%clk 0:00:03]} 44. Bf1 {[%clk 0:00:03.4]} 44...
Bb7 {[%clk 0:00:03.4]} 45. Bg2 {[%clk 0:00:04]} 45... d4 {[%clk 0:00:03.8]} 46.
Rd2 {[%clk 0:00:03.9]} 46... Bxg2+ {[%clk 0:00:02.8]} 47. Kxg2 {[%clk
0:00:04.8]} 47... Rd7 {[%clk 0:00:03.2]} 48. Kf3 {[%clk 0:00:05]} 48... d3
{[%clk 0:00:03.6]} 49. c3 {[%clk 0:00:04.9]} 49... Rb7 {[%clk 0:00:02.6]} 50.
Ke3 {[%clk 0:00:05]} 50... Kf6 {[%clk 0:00:02.7]} 51. Kd4 {[%clk 0:00:05.4]}
51... Rc7 {[%clk 0:00:03.1]} 52. Rb2 {[%clk 0:00:05.4]} 52... h6 {[%clk
0:00:02.8]} 53. Rb6+ {[%clk 0:00:05]} 53... Kg7 {[%clk 0:00:02.9]} 54. Ke3
{[%clk 0:00:05.4]} 54... Re7+ {[%clk 0:00:02.7]} 55. Kd2 {[%clk 0:00:05.1]}
55... Re2+ {[%clk 0:00:03.1]} 56. Kd1 {[%clk 0:00:05.6]} 56... Rxa2 {[%clk
0:00:03.2]} 57. Rb7+ {[%clk 0:00:06]} 57... Kf6 {[%clk 0:00:02.4]} 58. Rc7
{[%clk 0:00:06.5]} 58... Ke5 {[%clk 0:00:02.5]} 59. Rxc4 {[%clk 0:00:06.3]}
59... Rc2 {[%clk 0:00:02.8]} 60. Rc5+ {[%clk 0:00:05.9]} 60... Ke4 {[%clk
0:00:02.7]} 61. Rc6 {[%clk 0:00:05.9]} 61... Kf3 {[%clk 0:00:02.5]} 62. Rxg6
{[%clk 0:00:05.6]} 62... Rxc3 {[%clk 0:00:02.7]} 63. Kd2 {[%clk 0:00:05.6]}
63... Ra3 {[%clk 0:00:03]} 64. Rxh6 {[%clk 0:00:05.6]} 64... f4 {[%clk
0:00:03.2]} 65. gxf4 {[%clk 0:00:05.7]} 65... Kxf4 {[%clk 0:00:03.4]} 66. h5
{[%clk 0:00:06.1]} 66... Ke5 {[%clk 0:00:02.3]} 67. Rh8 {[%clk 0:00:05.7]} 67...
Ke4 {[%clk 0:00:02.2]} 68. Re8+ {[%clk 0:00:05.8]} 68... Kd4 {[%clk 0:00:02.4]}
69. Rd8+ {[%clk 0:00:06.3]} 69... Kc4 {[%clk 0:00:02.8]} 70. Rc8+ {[%clk
0:00:06.8]} 70... Kb5 {[%clk 0:00:03]} 71. Rd8 {[%clk 0:00:06.8]} 71... Ra2+
{[%clk 0:00:03.1]} 72. Kxd3 {[%clk 0:00:06.6]} 72... Rh2 {[%clk 0:00:03.6]} 73.
Rd5+ {[%clk 0:00:06]} 73... Kb4 {[%clk 0:00:03.6]} 74. Rg5 {[%clk 0:00:06.1]}
74... a5 {[%clk 0:00:03.3]} 75. Rg4+ {[%clk 0:00:05.9]} 75... Kb3 {[%clk
0:00:02.9]} 76. Rg8 {[%clk 0:00:04.8]} 76... a4 {[%clk 0:00:02.4]} 77. Rb8+
{[%clk 0:00:04.7]} 77... Ka2 {[%clk 0:00:02.5]} 78. Rb5 {[%clk 0:00:04.6]} 78...
a3 {[%clk 0:00:02.9]} 79. Kc3 {[%clk 0:00:04.9]} 79... Ka1 {[%clk 0:00:02.7]}
80. h6 {[%clk 0:00:04.4]} 80... Rxh6 {[%clk 0:00:01.4]} 81. Kb3 {[%clk
0:00:04.4]} 81... Rh3+ {[%clk 0:00:01.2]} 82. Ka4 {[%clk 0:00:04.2]} 82... Rh7
{[%clk 0:00:01.1]} 83. Kxa3 {[%clk 0:00:04.3]} 1-0

[Event "*** Titled Tuesday Blitz"]
[Site "Chess.com"]
[Date "2020.03.03"]
[Round "9"]
[White "Parhamov"]
[Black "vladislavkovalev"]
[Result "1-0"]
[WhiteElo "3072"]
[BlackElo "2940"]
[TimeControl "180+1"]
[EndTime "14:48:41 PST"]
[Termination "Parhamov won on time"]

1. e4 {[%clk 0:03:00.9]} 1... e5 {[%clk 0:03:00]} 2. Nf3 {[%clk 0:03:00.6]} 2...
Nc6 {[%clk 0:03:00.6]} 3. Bb5 {[%clk 0:03:00.3]} 3... a6 {[%clk 0:03:00.6]} 4.
Ba4 {[%clk 0:03:00.3]} 4... Nf6 {[%clk 0:03:01.1]} 5. O-O {[%clk 0:02:59.9]}
5... Be7 {[%clk 0:03:01]} 6. Re1 {[%clk 0:03:00.2]} 6... b5 {[%clk 0:03:01.4]}
7. Bb3 {[%clk 0:02:59.7]} 7... d6 {[%clk 0:03:02.1]} 8. c3 {[%clk 0:02:59.6]}
8... O-O {[%clk 0:03:02.7]} 9. d4 {[%clk 0:03:00]} 9... Bg4 {[%clk 0:03:02.4]}
10. Be3 {[%clk 0:02:54.2]} 10... exd4 {[%clk 0:02:59.9]} 11. cxd4 {[%clk
0:02:51.6]} 11... Na5 {[%clk 0:03:00.3]} 12. Bc2 {[%clk 0:02:51.6]} 12... c5
{[%clk 0:02:55.5]} 13. d5 {[%clk 0:02:51.4]} 13... Nc4 {[%clk 0:02:53.7]} 14.
Bc1 {[%clk 0:02:51.7]} 14... Nd7 {[%clk 0:02:54.2]} 15. h3 {[%clk 0:02:49.5]}
15... Bxf3 {[%clk 0:02:50.4]} 16. Qxf3 {[%clk 0:02:49.7]} 16... Bf6 {[%clk
0:02:51]} 17. Nc3 {[%clk 0:02:49.5]} 17... Nde5 {[%clk 0:02:17.4]} 18. Qh5
{[%clk 0:02:38.8]} 18... g6 {[%clk 0:02:14.5]} 19. Qd1 {[%clk 0:02:32.3]} 19...
Nxb2 {[%clk 0:01:50.7]} 20. Bxb2 {[%clk 0:02:32.1]} 20... Nc4 {[%clk 0:01:51.4]}
21. e5 {[%clk 0:02:26]} 21... Nxb2 {[%clk 0:01:47.5]} 22. Qc1 {[%clk 0:02:21.7]}
22... Bxe5 {[%clk 0:01:47]} 23. Rxe5 {[%clk 0:02:19.2]} 23... dxe5 {[%clk
0:01:47.9]} 24. Qxb2 {[%clk 0:02:19]} 24... f5 {[%clk 0:01:43.8]} 25. Rd1 {[%clk
0:02:16.4]} 25... Qd6 {[%clk 0:01:43.4]} 26. a3 {[%clk 0:02:13.2]} 26... Rab8
{[%clk 0:01:34.9]} 27. g3 {[%clk 0:02:11.4]} 27... c4 {[%clk 0:01:30.8]} 28. h4
{[%clk 0:02:11]} 28... Rfd8 {[%clk 0:01:25.6]} 29. h5 {[%clk 0:02:07.8]} 29...
b4 {[%clk 0:01:15.9]} 30. axb4 {[%clk 0:02:03.7]} 30... Qxb4 {[%clk 0:01:16.8]}
31. Qxb4 {[%clk 0:02:01.9]} 31... Rxb4 {[%clk 0:01:17.7]} 32. Ra1 {[%clk
0:02:02.5]} 32... Rd6 {[%clk 0:01:14.6]} 33. hxg6 {[%clk 0:02:00.4]} 33... hxg6
{[%clk 0:01:14.7]} 34. Ba4 {[%clk 0:01:59.7]} 34... Kg7 {[%clk 0:01:10]} 35. Kg2
{[%clk 0:01:52.1]} 35... Kf6 {[%clk 0:01:09.6]} 36. Bc6 {[%clk 0:01:43.7]} 36...
Rb3 {[%clk 0:01:07.9]} 37. Na4 {[%clk 0:01:40.5]} 37... e4 {[%clk 0:00:45.3]}
38. Nc5 {[%clk 0:01:40.3]} 38... Rb2 {[%clk 0:00:44.1]} 39. Nb7 {[%clk
0:01:39.5]} 39... Ke5 {[%clk 0:00:37.6]} 40. Nxd6 {[%clk 0:01:39.3]} 40... Kxd6
{[%clk 0:00:38.5]} 41. Rxa6 {[%clk 0:01:39.7]} 41... e3 {[%clk 0:00:34.3]} 42.
Ba8+ {[%clk 0:01:32.8]} 42... Kc5 {[%clk 0:00:21]} 43. Rc6+ {[%clk 0:01:32.5]}
43... Kd4 {[%clk 0:00:21.2]} 44. d6 {[%clk 0:01:32.9]} 44... Rxf2+ {[%clk
0:00:21.5]} 45. Kg1 {[%clk 0:01:33.3]} 45... Rd2 {[%clk 0:00:20.4]} 46. d7
{[%clk 0:01:29.4]} 46... Kc3 {[%clk 0:00:11.9]} 47. Kf1 {[%clk 0:01:17.5]} 47...
Rxd7 {[%clk 0:00:10.6]} 48. Ke2 {[%clk 0:01:17.8]} 48... Rd2+ {[%clk 0:00:09.6]}
49. Kxe3 {[%clk 0:01:14.6]} 49... Rd3+ {[%clk 0:00:10.2]} 50. Kf4 {[%clk
0:01:13]} 50... g5+ {[%clk 0:00:10.6]} 51. Kxg5 {[%clk 0:01:11.8]} 51... Rxg3+
{[%clk 0:00:11.2]} 52. Kxf5 {[%clk 0:01:12.2]} 52... Rd3 {[%clk 0:00:11.8]} 53.
Rc8 {[%clk 0:01:10.1]} 53... Kb3 {[%clk 0:00:08.9]} 54. Ke4 {[%clk 0:01:09.1]}
54... Rd1 {[%clk 0:00:05.6]} 55. Bd5 {[%clk 0:01:09.3]} 55... Re1+ {[%clk
0:00:06.2]} 56. Kd4 {[%clk 0:01:09.3]} 56... Rd1+ {[%clk 0:00:06.7]} 57. Kc5
{[%clk 0:01:09.5]} 57... Rc1 {[%clk 0:00:03.2]} 58. Kb5 {[%clk 0:01:09.5]} 58...
Kc3 {[%clk 0:00:03.8]} 59. Bxc4 {[%clk 0:01:08.5]} 59... Kd2 {[%clk 0:00:04.5]}
60. Kb4 {[%clk 0:01:08]} 60... Rb1+ {[%clk 0:00:05]} 61. Bb3 {[%clk 0:01:07.7]}
61... Ke3 {[%clk 0:00:05.4]} 62. Kc3 {[%clk 0:01:07]} 62... Kf4 {[%clk
0:00:05.8]} 63. Bc2 {[%clk 0:01:06.9]} 63... Rb7 {[%clk 0:00:05.6]} 64. Rd8
{[%clk 0:01:06.1]} 64... Rc7+ {[%clk 0:00:06.1]} 65. Kd3 {[%clk 0:01:06.2]}
65... Ke5 {[%clk 0:00:06.1]} 66. Bb3 {[%clk 0:01:05.4]} 66... Rc6 {[%clk
0:00:06.6]} 67. Rd5+ {[%clk 0:01:04.4]} 67... Kf6 {[%clk 0:00:07]} 68. Ke4
{[%clk 0:01:04.1]} 68... Rb6 {[%clk 0:00:07.7]} 69. Bc4 {[%clk 0:01:04.1]} 69...
Rb1 {[%clk 0:00:07.9]} 70. Kf4 {[%clk 0:01:03.6]} 70... Re1 {[%clk 0:00:07.3]}
71. Rd6+ {[%clk 0:01:03.1]} 71... Ke7 {[%clk 0:00:07.6]} 72. Ra6 {[%clk
0:01:03.1]} 72... Kd7 {[%clk 0:00:07.8]} 73. Bd5 {[%clk 0:01:03.2]} 73... Kc7
{[%clk 0:00:07.9]} 74. Be4 {[%clk 0:01:03.6]} 74... Kd7 {[%clk 0:00:07.8]} 75.
Ke5 {[%clk 0:01:02.2]} 75... Kc7 {[%clk 0:00:08.3]} 76. Rc6+ {[%clk 0:01:01.4]}
76... Kd7 {[%clk 0:00:08.8]} 77. Rc3 {[%clk 0:01:01.4]} 77... Re2 {[%clk
0:00:07.4]} 78. Rc1 {[%clk 0:00:57.3]} 78... Re3 {[%clk 0:00:06.6]} 79. Kd5
{[%clk 0:00:57.5]} 79... Re2 {[%clk 0:00:05.7]} 80. Rb1 {[%clk 0:00:52.6]} 80...
Rd2+ {[%clk 0:00:06.1]} 81. Ke5 {[%clk 0:00:53]} 81... Re2 {[%clk 0:00:04]} 82.
Rb7+ {[%clk 0:00:46.8]} 82... Kc8 {[%clk 0:00:04.4]} 83. Rh7 {[%clk 0:00:46.3]}
83... Re1 {[%clk 0:00:05]} 84. Kd5 {[%clk 0:00:46.1]} 84... Kb8 {[%clk
0:00:04.1]} 85. Re7 {[%clk 0:00:43.5]} 85... Re2 {[%clk 0:00:02.1]} 86. Kd6
{[%clk 0:00:41.7]} 1-0

[Event "*** Titled Tuesday Blitz"]
[Site "Chess.com"]
[Date "2020.03.03"]
[Round "9"]
[White "GrigorGrigorov"]
[Black "black_pawn_16"]
[Result "1-0"]
[WhiteElo "2763"]
[BlackElo "2252"]
[TimeControl "180+1"]
[EndTime "14:48:43 PST"]
[Termination "GrigorGrigorov won by resignation"]

1. d4 {[%clk 0:03:00.9]} 1... f5 {[%clk 0:02:59.6]} 2. g3 {[%clk 0:03:00.3]}
2... Nf6 {[%clk 0:02:59.3]} 3. Bg2 {[%clk 0:03:00.5]} 3... e6 {[%clk 0:02:59]}
4. Nf3 {[%clk 0:02:58]} 4... Be7 {[%clk 0:02:58.7]} 5. O-O {[%clk 0:02:56.5]}
5... O-O {[%clk 0:02:58.2]} 6. c4 {[%clk 0:02:55.3]} 6... d6 {[%clk 0:02:57.1]}
7. Nc3 {[%clk 0:02:54]} 7... Ne4 {[%clk 0:02:56.8]} 8. Qc2 {[%clk 0:02:49.3]}
8... Nxc3 {[%clk 0:02:56.3]} 9. Qxc3 {[%clk 0:02:37.5]} 9... a5 {[%clk
0:02:55.9]} 10. b3 {[%clk 0:02:21.6]} 10... Bf6 {[%clk 0:02:54]} 11. Bb2 {[%clk
0:02:21.6]} 11... Nc6 {[%clk 0:02:52.9]} 12. Qd2 {[%clk 0:02:13.1]} 12... e5
{[%clk 0:02:51.1]} 13. dxe5 {[%clk 0:02:12.2]} 13... dxe5 {[%clk 0:02:52]} 14.
Qd5+ {[%clk 0:02:09.7]} 14... Kh8 {[%clk 0:02:45.5]} 15. Qxd8 {[%clk 0:01:57.1]}
15... Rxd8 {[%clk 0:02:43.6]} 16. Rfd1 {[%clk 0:01:57.5]} 16... Be6 {[%clk
0:02:41.6]} 17. e4 {[%clk 0:01:47.7]} 17... fxe4 {[%clk 0:02:38.7]} 18. Ne1
{[%clk 0:01:33]} 18... Bg4 {[%clk 0:02:32.6]} 19. Rxd8+ {[%clk 0:01:28.6]} 19...
Rxd8 {[%clk 0:02:33.5]} 20. Bxe4 {[%clk 0:01:29.1]} 20... h6 {[%clk 0:02:10.7]}
21. f3 {[%clk 0:01:23.3]} 21... Be6 {[%clk 0:02:09.2]} 22. Bc3 {[%clk
0:01:23.3]} 22... Ra8 {[%clk 0:02:07.6]} 23. Nd3 {[%clk 0:01:22.4]} 23... a4
{[%clk 0:02:02.1]} 24. Kf2 {[%clk 0:01:08.4]} 24... Ra7 {[%clk 0:01:55.4]} 25.
h4 {[%clk 0:01:05.1]} 25... Nd4 {[%clk 0:01:49.5]} 26. Nc5 {[%clk 0:00:52.8]}
26... axb3 {[%clk 0:01:28.3]} 27. axb3 {[%clk 0:00:51.6]} 27... Rxa1 {[%clk
0:01:25.2]} 28. Bxa1 {[%clk 0:00:52.5]} 28... Bc8 {[%clk 0:01:24.2]} 29. Bxd4
{[%clk 0:00:49.4]} 29... exd4 {[%clk 0:01:22.8]} 30. Bxb7 {[%clk 0:00:47.4]}
30... Bh3 {[%clk 0:01:15.4]} 31. Be4 {[%clk 0:00:44.1]} 31... Be7 {[%clk
0:01:13.1]} 32. Nd3 {[%clk 0:00:43.8]} 32... Be6 {[%clk 0:01:12]} 33. Nf4 {[%clk
0:00:40.1]} 33... Bf7 {[%clk 0:01:07.6]} 34. Ke2 {[%clk 0:00:35.7]} 34... Bd6
{[%clk 0:01:07]} 35. Kd3 {[%clk 0:00:31.5]} 35... c5 {[%clk 0:01:04.2]} 36. Bg6
{[%clk 0:00:30]} 36... Bxg6+ {[%clk 0:00:53.3]} 37. Nxg6+ {[%clk 0:00:29.3]}
37... Kg8 {[%clk 0:00:51.2]} 38. g4 {[%clk 0:00:24.7]} 38... Kf7 {[%clk
0:00:50.1]} 39. h5 {[%clk 0:00:24.8]} 39... Kf6 {[%clk 0:00:49.7]} 40. Ke4
{[%clk 0:00:24.9]} 40... Kg5 {[%clk 0:00:48]} 41. Nh8 {[%clk 0:00:22]} 41... Kh4
{[%clk 0:00:44.2]} 42. Nf7 {[%clk 0:00:20.6]} 42... Bf8 {[%clk 0:00:44.1]} 43.
Ne5 {[%clk 0:00:20.4]} 43... Kg3 {[%clk 0:00:43.9]} 44. f4 {[%clk 0:00:19.4]}
44... Bd6 {[%clk 0:00:39.1]} 45. g5 {[%clk 0:00:16.4]} 45... Kh4 {[%clk
0:00:37.1]} 46. gxh6 {[%clk 0:00:15.5]} 46... gxh6 {[%clk 0:00:38]} 47. Nf7
{[%clk 0:00:13.7]} 47... Bf8 {[%clk 0:00:37.8]} 48. Nd8 {[%clk 0:00:13]} 48...
Kxh5 {[%clk 0:00:37]} 49. Ne6 {[%clk 0:00:13.9]} 49... Be7 {[%clk 0:00:37]} 50.
b4 {[%clk 0:00:09.9]} 50... cxb4 {[%clk 0:00:35.9]} 51. Nxd4 {[%clk 0:00:10.6]}
51... Kg4 {[%clk 0:00:34.6]} 52. Nc6 {[%clk 0:00:09.6]} 52... Bf8 {[%clk
0:00:31.7]} 53. Ne5+ {[%clk 0:00:09.4]} 53... Kg3 {[%clk 0:00:29.9]} 54. Nd7
{[%clk 0:00:08.5]} 54... Be7 {[%clk 0:00:28.1]} 55. f5 {[%clk 0:00:06.9]} 55...
h5 {[%clk 0:00:27.7]} 56. f6 {[%clk 0:00:06.7]} 56... Bd6 {[%clk 0:00:25.3]} 57.
c5 {[%clk 0:00:06.9]} 57... b3 {[%clk 0:00:25.5]} 58. Kd3 {[%clk 0:00:06.7]}
58... h4 {[%clk 0:00:22.7]} 59. cxd6 {[%clk 0:00:05.6]} 59... h3 {[%clk
0:00:23]} 60. f7 {[%clk 0:00:06.1]} 60... h2 {[%clk 0:00:23.4]} 61. f8=Q {[%clk
0:00:06.5]} 61... h1=Q {[%clk 0:00:23.7]} 62. Qg8+ {[%clk 0:00:06.2]} 62... Kf2
{[%clk 0:00:23.9]} 63. Qxb3 {[%clk 0:00:05.4]} 63... Qh7+ {[%clk 0:00:20.4]} 64.
Kd4 {[%clk 0:00:03.6]} 64... Qxd7 {[%clk 0:00:20.4]} 65. Qd5 {[%clk 0:00:03.4]}
65... Qa4+ {[%clk 0:00:18.9]} 66. Ke5 {[%clk 0:00:03.3]} 66... Qe8+ {[%clk
0:00:17.1]} 67. Qe6 {[%clk 0:00:03]} 67... Qb5+ {[%clk 0:00:16.3]} 68. Kf6
{[%clk 0:00:03]} 68... Qb2+ {[%clk 0:00:16.2]} 69. Qe5 {[%clk 0:00:02.8]} 69...
Qb7 {[%clk 0:00:15.4]} 70. Qf5+ {[%clk 0:00:02.2]} 70... Ke3 {[%clk 0:00:14.8]}
71. d7 {[%clk 0:00:03.1]} 71... Qb6+ {[%clk 0:00:13.8]} 72. Qe6+ {[%clk
0:00:03.2]} 72... Qxe6+ {[%clk 0:00:11.6]} 73. Kxe6 {[%clk 0:00:04.1]} 73... Kd4
{[%clk 0:00:12.5]} 74. d8=Q+ {[%clk 0:00:04.7]} 74... Kc5 {[%clk 0:00:13.3]} 75.
Qd5+ {[%clk 0:00:05.6]} 75... Kb4 {[%clk 0:00:12.7]} 76. Qc6 {[%clk 0:00:05.9]}
76... Ka5 {[%clk 0:00:12.2]} 77. Qb7 {[%clk 0:00:05.9]} 77... Ka4 {[%clk
0:00:12.6]} 78. Qb6 {[%clk 0:00:06.3]} 78... Ka3 {[%clk 0:00:12.5]} 79. Qb5
{[%clk 0:00:06.9]} 79... Ka2 {[%clk 0:00:13.4]} 80. Qb4 {[%clk 0:00:07.2]} 80...
Ka1 {[%clk 0:00:13.8]} 81. Kd5 {[%clk 0:00:08.1]} 81... Ka2 {[%clk 0:00:12.9]}
82. Kd4 {[%clk 0:00:09]} 82... Ka1 {[%clk 0:00:13.8]} 83. Kc3 {[%clk 0:00:09.9]}
1-0